fUSD/lending_fUSD_20240910
["ID","MTS","AMOUNT","RATE_DAILY","PERIOD"]
[337694606,1725966978690,166.6173,0.00011943,2]
[337694607,1725967107684,166.67,0.00011952,2]
[337694609,1725967123183,365.55,0.00010026,2]
[337694612,1725967172303,500.0,0.00010264,2]
[337694613,1725967193047,614.3190561,0.00010264,2]
[337694614,1725967194595,500.0,0.00010264,2]
[337694615,1725967206002,250.0,0.00011909,2]
[337694616,1725967226565,651.82620897,0.00011942,2]
[337694617,1725967469099,167.35,0.00011511,2]
[337694618,1725967517165,291.69524508,0.00010825,2]
[337694619,1725967529996,27067.58756105,0.000101,2]
[337694620,1725967544583,357.44,0.00011479,2]
[337694621,1725967569008,204.63828779,0.00011942,2]
[337694622,1725967600503,666162.4626965,0.00012,2]
[337694626,1725967647532,281.01,0.00010959,2]
[337694627,1725967657950,166.67,0.00011601,2]
[337694629,1725967663648,347.27,9.683e-05,2]
[337694630,1725967663990,347.27,0.00011947,2]
[337694633,1725967742214,586.6435881,0.00011941,2]
[337694635,1725967759087,-151.44,0.00012031,2]
[337694636,1725967759144,-151.44,0.00012031,2]
[337694638,1725967759200,-151.44,0.00012031,2]
[337694640,1725967759253,-151.44,0.00012031,2]
[337694642,1725967759310,-151.44,0.00012031,2]
[337694643,1725967759365,-151.44,0.00012031,2]
[337694644,1725967759421,-151.44,0.00012031,2]
[337694645,1725967759482,-151.44,0.00012031,2]
[337694646,1725967759535,-151.44,0.00012031,2]
[337694647,1725967759592,-150.0,0.00012039,2]
[337694648,1725967759655,-500.0,0.0001204,2]
[337694649,1725967759711,-500.0,0.0001204,2]
[337694650,1725967759770,-773.63,0.0001204,2]
[337694651,1725967759825,-929.51,0.0001204,2]
[337694652,1725967759882,-1058.09,0.0001204,2]
[337694653,1725967759937,-778.23,0.0001204,2]
[337694654,1725967759991,-101.64535816,0.0001204,2]
[337694655,1725967760058,-398.35464184,0.0001204,2]
[337694656,1725967760246,-500.0,0.0001204,2]
[337694657,1725967760300,-684.83,0.0001204,2]
[337694658,1725967760356,-1115.04,0.0001204,2]
[337694659,1725967760410,-407.80688173,0.0001204,2]
[337694661,1725967784012,-119.80311827,0.0001204,2]
[337694663,1725967784064,-976.07,0.0001204,2]
[337694665,1725967784114,-500.0,0.0001204,2]
[337694666,1725967784165,-630.59,0.0001204,2]
[337694667,1725967784216,-917.16,0.0001204,2]
[337694668,1725967784266,-500.0,0.0001204,2]
[337694669,1725967784320,-1112.06,0.0001204,2]
[337694670,1725967784370,-1583.58417752,0.0001204,2]
[337694671,1725967784439,-72.37582248,0.0001204,2]
[337694672,1725967784486,-705.04,0.0001204,2]
[337694673,1725967784535,-1211.47,0.0001204,2]
[337694674,1725967784587,-500.0,0.0001204,2]
[337694675,1725967784640,-454.08017176,0.0001204,2]
[337694676,1725967795892,250.0,0.00011516,2]
[337694677,1725967808965,-155.1,0.0001203,2]
[337694678,1725967809020,-155.1,0.0001203,2]
[337694679,1725967809077,-300.0,0.00012039,2]
[337694680,1725967809132,-645.04,0.0001204,2]
[337694681,1725967809184,-500.0,0.0001204,2]
[337694682,1725967809238,-533.79,0.0001204,2]
[337694683,1725967809292,-650.58,0.0001204,2]
[337694684,1725967809349,-1872.42,0.0001204,2]
[337694685,1725967809404,-500.0,0.0001204,2]
[337694686,1725967809461,-1212.88196159,0.0001204,2]
[337694687,1725967809530,-4248.87695699,0.0001204,2]
[337694834,1725967844142,-151.45,0.00012031,2]
[337694835,1725967844152,-151.45,0.00012031,2]
[337694836,1725967844161,-19003.61108142,0.0001204,2]
[337694837,1725967844171,-404.15114558,0.0001204,2]
[337694838,1725967844181,-3418.39,0.0001204,2]
[337694839,1725967844190,-500.0,0.0001204,2]
[337694840,1725967844200,-2229.18,0.0001204,2]
[337694841,1725967844209,-500.0,0.0001204,2]
[337694842,1725967844219,-3407.0,0.0001204,2]
[337694843,1725967844228,-1064.46,0.0001204,2]
[337694844,1725967844238,-761.37,0.0001204,2]
[337694845,1725967844248,-516.45,0.0001204,2]
[337694846,1725967844259,-500.0,0.0001204,2]
[337694847,1725967844269,-1678.45,0.0001204,2]
[337694848,1725967844279,-1462.35,0.0001204,2]
[337694849,1725967844288,-1814.82,0.0001204,2]
[337694850,1725967844298,-2134.9,0.0001204,2]
[337694851,1725967844307,-1545.99,0.0001204,2]
[337694852,1725967844319,-1648.71,0.0001204,2]
[337694853,1725967844329,-1906.92,0.0001204,2]
[337694854,1725967844338,-500.0,0.0001204,2]
[337694855,1725967844348,-786.3,0.0001204,2]
[337694856,1725967844358,-1811.51,0.0001204,2]
[337694857,1725967844367,-687.27,0.0001204,2]
[337694858,1725967844377,-1180.57,0.0001204,2]
[337694859,1725967844386,-1620.08,0.0001204,2]
[337694860,1725967844398,-1383.19,0.0001204,2]
[337694861,1725967844407,-4331.04,0.0001204,2]
[337694862,1725967844418,-1403.73,0.0001204,2]
[337694863,1725967844427,-2697.98,0.0001204,2]
[337694864,1725967844437,-500.0,0.0001204,2]
[337694865,1725967844447,-1218.87,0.0001204,2]
[337694866,1725967844458,-5460.66,0.0001204,2]
[337694867,1725967844470,-1809.02,0.0001204,2]
[337694868,1725967844481,-500.0,0.0001204,2]
[337694869,1725967844491,-8654.8,0.0001204,2]
[337694870,1725967844500,-1821.65,0.0001204,2]
[337694871,1725967844511,-1503.55,0.0001204,2]
[337694872,1725967844520,-1586.96,0.0001204,2]
[337694873,1725967844529,-1160.99,0.0001204,2]
[337694874,1725967844539,-3496.91,0.0001204,2]
[337694875,1725967844549,-23876.76,0.0001204,2]
[337694876,1725967844559,-829.17,0.0001204,2]
[337694877,1725967844569,-1884.41,0.0001204,2]
[337694878,1725967844579,-604.78,0.0001204,2]
[337694879,1725967844588,-675.66,0.0001204,2]
[337694880,1725967844597,-5219.88,0.0001204,2]
[337694881,1725967844607,-500.0,0.0001204,2]
[337694882,1725967844616,-511.55,0.0001204,2]
[337694883,1725967844626,-5528.01,0.0001204,2]
[337694884,1725967844637,-500.0,0.0001204,2]
[337694885,1725967844647,-500.0,0.0001204,2]
[337694886,1725967844657,-1134.27,0.0001204,2]
[337694887,1725967844667,-572.1565,0.0001204,2]
[337694888,1725967844676,-500.0,0.0001204,2]
[337694889,1725967844685,-1794.41,0.0001204,2]
[337694890,1725967844695,-623.47,0.0001204,2]
[337694891,1725967844705,-500.0,0.0001204,2]
[337694892,1725967844715,-52571.23506774,0.00012041,2]
[337694894,1725967861707,500.0,0.00010264,2]
[337694895,1725967886563,500.0,0.00010264,2]
[337694896,1725967905990,150.17744296,0.00011942,2]
[337694897,1725967911895,300.0,0.000114,4]
[337694898,1725967914015,700.0,0.000115,4]
[337694899,1725967916138,1100.0,0.000116,4]
[337694900,1725967918243,1400.0,0.000117,4]
[337694901,1725967920347,1800.0,0.000118,4]
[337694902,1725967922437,300.0,0.000119,4]
[337694903,1725967994512,750.0,0.00011,2]
[337694904,1725968064911,192.7151612,0.00011942,2]
[337694905,1725968120147,714.04,0.0001151,2]
[337694906,1725968209171,1056.3,0.00028,120]
[337694907,1725968222641,361.86,0.00010959,2]
[337694908,1725968254790,500.0,9.164e-05,2]
[337694909,1725968256487,500.0,0.00011904,2]
[337694910,1725968257684,527.97922929,0.0001194,2]
[337694911,1725968264688,500.0,9.164e-05,2]
[337694912,1725968266719,500.0,0.00011904,2]
[337694913,1725968305061,250.0,0.00011522,2]
[337694914,1725968396469,150.17744294,0.0001194,2]
[337694915,1725968402283,328.28,9.587e-05,2]
[337694916,1725968402624,328.28,0.00011851,2]
[337694917,1725968495639,295.97445836,0.00011648,2]
[337694918,1725968566023,166.66,0.00011343,2]
[337694919,1725968620697,3001.70783362,0.000115,2]
[337694920,1725968706264,150.0,0.00010825,2]
[337694921,1725968706594,150.0,0.00011426,2]
[337694922,1725968707164,150.0,0.00012,2]
[337694923,1725968708829,278.82832767,0.00010825,2]
[337694924,1725968715922,150.0,0.00010825,2]
[337694925,1725968725815,150.0,0.00010825,2]
[337694926,1725968772921,475.18130637,0.0001194,2]
[337694927,1725968785895,1000.0,0.00011445,2]
[337694928,1725968787636,408.83229,0.0001194,2]
[337694929,1725968787750,408.8323,0.0001196,2]
[337694930,1725968787889,408.83229,0.00012,2]
[337694931,1725968790557,1144.86215878,0.0001176,2]
[337694932,1725968815015,156.68,0.00010959,2]
[337694933,1725968877044,150.17744294,0.0001194,2]
[337694934,1725968888462,1066.03338211,0.00011701,2]
[337694935,1725968894520,295.45,9.393e-05,2]
[337694936,1725968894881,295.45,0.00011657,2]
[337694937,1725968895138,-271.3474091,0.00012027,2]
[337694938,1725968895171,-163.86763665,0.00012027,2]
[337694939,1725968895201,-365.0,0.0001203,2]
[337694940,1725968895232,-151.5,0.00012031,2]
[337694941,1725968895263,-151.5,0.00012031,2]
[337694942,1725968895292,-300.0,0.00012038,2]
[337694943,1725968895322,-500.0,0.00012039,2]
[337694944,1725968895411,-500.0,0.00012039,2]
[337694945,1725968895444,-500.0,0.00012039,2]
[337694946,1725968895476,-896.12,0.00012039,2]
[337694947,1725968895508,-890.78,0.00012039,2]
[337694948,1725968895536,-1014.01,0.00012039,2]
[337694949,1725968895566,-620.81827352,0.00012039,2]
[337694950,1725968895614,-124.98172648,0.00012039,2]
[337694951,1725968895645,-395.09109598,0.00012039,2]
[337694952,1725968895677,-500.0,0.00012039,2]
[337694953,1725968895708,-656.29,0.00012039,2]
[337694954,1725968895737,-1492.18,0.00012039,2]
[337694955,1725968895768,-317.17866755,0.00012039,2]
[337694956,1725968903704,1092.20201764,0.00011798,2]
[337694957,1725968912210,1124.97434588,0.00011798,2]
[337694958,1725968920031,-751.40133245,0.00012039,2]
[337694959,1725968920061,-505.63,0.00012039,2]
[337694960,1725968920089,-935.4,0.00012039,2]
[337694961,1725968920121,-500.0,0.00012039,2]
[337694962,1725968920148,-604.31,0.00012039,2]
[337694963,1725968920176,-768.13,0.00012039,2]
[337694964,1725968920204,-878.95,0.00012039,2]
[337694965,1725968920232,-1411.36,0.00012039,2]
[337694966,1725968920262,-165.97528301,0.00012039,2]
[337694967,1725968920298,-334.02471699,0.00012039,2]
[337694968,1725968920327,-687.27,0.00012039,2]
[337694969,1725968920357,-1180.57,0.00012039,2]
[337694970,1725968920386,-1400.50843144,0.00012039,2]
[337694971,1725968928393,1094.50005378,0.00011798,2]
[337694972,1725968944917,-1527.38,0.00012039,2]
[337694973,1725968944950,-742.65,0.00012039,2]
[337694974,1725968944983,-1124.82,0.00012039,2]
[337694975,1725968945016,-831.43,0.00012039,2]
[337694976,1725968945048,-500.0,0.00012039,2]
[337694977,1725968945082,-1997.34721073,0.00012039,2]
[337694978,1725968945120,-298.63278927,0.00012039,2]
[337694979,1725968945153,-3346.15713554,0.00012039,2]
[337694980,1725968970017,-1797.51,0.00012039,2]
[337694981,1725968970049,-572.1565,0.00012039,2]
[337694982,1725968970080,-1821.65,0.00012039,2]
[337694983,1725968970109,-617.63,0.00012039,2]
[337694984,1725968970138,-500.0,0.00012039,2]
[337694985,1725968970168,-1160.99,0.00012039,2]
[337694986,1725968970198,-461.05905344,0.00012039,2]
[337694987,1725968970232,-1125.90094656,0.00012039,2]
[337694988,1725968970263,-618.16,0.00012039,2]
[337694989,1725968970291,-829.17,0.00012039,2]
[337694990,1725968970322,-1108.97594872,0.00012039,2]
[337694991,1725968972324,1102.91335285,0.00011798,2]
[337694992,1725968981775,295.97445837,0.00011731,2]
[337694993,1725968995149,-500.0,0.00012039,2]
[337694994,1725968995178,-751.87,0.00012039,2]
[337694995,1725968995207,-500.0,0.00012039,2]
[337694996,1725968995236,-500.0,0.00012039,2]
[337694997,1725968995267,-500.0,0.00012039,2]
[337694998,1725968995296,-527.68,0.00012039,2]
[337694999,1725968995324,-502.48,0.00012039,2]
[337695000,1725968995353,-3361.22960242,0.00012039,2]
[337695001,1725968995398,-2166.78039758,0.00012039,2]
[337695002,1725968995427,-404.15114558,0.00012039,2]
[337695003,1725968995755,-1109.79168203,0.00012039,2]
[337695004,1725968997401,1059.8987833,0.00011798,2]
[337695010,1725969031862,-151.48,0.00012031,2]
[337695011,1725969031873,-500.0,0.00012039,2]
[337695012,1725969031883,-500.0,0.00012039,2]
[337695013,1725969031894,-500.0,0.00012039,2]
[337695014,1725969031904,-1028.90836122,0.00012039,2]
[337695015,1725969031922,-378.25609224,0.00012039,2]
[337695016,1725969031934,-429.8742519,0.00012039,2]
[337695017,1725969031977,-397.5522085,0.00012039,2]
[337695018,1725969031989,-1300.99,0.00012039,2]
[337695019,1725969032034,-621.77146932,0.00012039,2]
[337695020,1725969032047,-1120.3923776,0.00012039,2]
[337695021,1725969032063,-450.25,0.00012039,2]
[337695022,1725969032195,-9852.85409,0.00012039,2]
[337695023,1725969032206,-270.54903608,0.00012039,2]
[337695030,1725969032781,250.0,0.00011446,2]
[337695033,1725969037928,-445.42957939,0.00012039,2]
[337695034,1725969037989,-1783.75042061,0.00012039,2]
[337695035,1725969037999,-3407.0,0.00012039,2]
[337695036,1725969038008,-500.0,0.00012039,2]
[337695037,1725969038018,-500.0,0.00012039,2]
[337695038,1725969038027,-1064.46,0.00012039,2]
[337695039,1725969038037,-4587.4,0.00012039,2]
[337695040,1725969038047,-516.45,0.00012039,2]
[337695041,1725969038057,-761.37,0.00012039,2]
[337695042,1725969038067,-500.0,0.00012039,2]
[337695043,1725969038077,-1462.35,0.00012039,2]
[337695044,1725969038087,-500.0,0.00012039,2]
[337695045,1725969038097,-2134.9,0.00012039,2]
[337695046,1725969038106,-1814.82,0.00012039,2]
[337695047,1725969038117,-500.0,0.00012039,2]
[337695048,1725969038126,-1583.43,0.00012039,2]
[337695049,1725969038136,-1675.09,0.00012039,2]
[337695050,1725969038145,-786.3,0.00012039,2]
[337695051,1725969038155,-1906.92,0.00012039,2]
[337695052,1725969038165,-699.05,0.00012039,2]
[337695053,1725969038175,-1099.14,0.00012039,2]
[337695054,1725969038184,-500.0,0.00012039,2]
[337695055,1725969038194,-558.79,0.00012039,2]
[337695056,1725969038203,-574.94516403,0.00012039,2]
[337695057,1725969038212,-500.0,0.00012039,2]
[337695058,1725969038223,-500.0,0.00012039,2]
[337695059,1725969038232,-1753.15,0.00012039,2]
[337695060,1725969038243,-1131.38,0.00012039,2]
[337695061,1725969038253,-1804.31,0.00012039,2]
[337695062,1725969038263,-658.63,0.00012039,2]
[337695063,1725969038273,-4331.04,0.00012039,2]
[337695064,1725969038284,-1620.08,0.00012039,2]
[337695065,1725969038294,-3164.99,0.00012039,2]
[337695066,1725969038303,-2697.98,0.00012039,2]
[337695067,1725969038313,-522.08,0.00012039,2]
[337695068,1725969038322,-500.0,0.00012039,2]
[337695069,1725969038332,-1403.73,0.00012039,2]
[337695070,1725969038342,-1809.02,0.00012039,2]
[337695071,1725969038351,-1377.34,0.00012039,2]
[337695072,1725969038360,-2200.32,0.00012039,2]
[337695073,1725969038372,-5321.24,0.00012039,2]
[337695074,1725969038382,-500.0,0.00012039,2]
[337695075,1725969038391,-1076.13,0.00012039,2]
[337695077,1725969038402,-500.0,0.00012039,2]
[337695078,1725969038412,-1503.55,0.00012039,2]
[337695079,1725969038423,-8654.8,0.00012039,2]
[337695080,1725969038435,-3496.91,0.00012039,2]
[337695081,1725969038446,-1745.74,0.00012039,2]
[337695082,1725969038457,-3401.96,0.00012039,2]
[337695083,1725969038466,-1112.61,0.00012039,2]
[337695084,1725969038476,-794.62,0.00012039,2]
[337695085,1725969038487,-1520.84,0.00012039,2]
[337695086,1725969038497,-23830.55,0.00012039,2]
[337695087,1725969038508,-1577.35,0.00012039,2]
[337695088,1725969038518,-4849.79996945,0.00012039,2]
[337695089,1725969038532,-370.08003055,0.00012039,2]
[337695090,1725969038543,-165.54877825,0.00012039,2]
[337695091,1725969038557,-295.13409382,0.00012039,2]
[337695092,1725969038568,-39.31712793,0.00012039,2]
[337695093,1725969038579,-666.86,0.00012039,2]
[337695094,1725969038590,-255.82920155,0.00012039,2]
[337695095,1725969038604,-376.23150534,0.00012039,2]
[337695096,1725969038617,-4665.60929311,0.00012039,2]
[337695097,1725969038626,-654.83,0.00012039,2]
[337695098,1725969038635,-505.69,0.00012039,2]
[337695099,1725969038646,-500.0,0.00012039,2]
[337695100,1725969038657,-899.09590535,0.00012039,2]
[337695101,1725969038669,-964.48409465,0.00012039,2]
[337695102,1725969038683,-320.75160989,0.00012039,2]
[337695103,1725969038703,-179.24839011,0.00012039,2]
[337695104,1725969038714,-500.0,0.00012039,2]
[337695105,1725969038724,-500.0,0.00012039,2]
[337695106,1725969038734,-1.27638924,0.00012039,2]
[337695107,1725969038747,-666.77284336,0.00012039,2]
[337695108,1725969038762,-1080.1107674,0.00012039,2]
[337695109,1725969038773,-992.48,0.00012039,2]
[337695110,1725969038782,-500.0,0.00012039,2]
[337695111,1725969038793,-500.0,0.00012039,2]
[337695112,1725969038803,-3481.71894725,0.00012039,2]
[337695113,1725969038816,-191.62105275,0.00012039,2]
[337695114,1725969038831,-623.47,0.00012039,2]
[337695115,1725969038842,-936.80246407,0.00012039,2]
[337695116,1725969038856,-2481.58753593,0.00012039,2]
[337695117,1725969038867,-500.0,0.00012039,2]
[337695118,1725969038877,-418.55602697,0.00012039,2]
[337695119,1725969038888,-1000.0,0.00012039,2]
[337695120,1725969038899,-2736.39397303,0.00012039,2]
[337695121,1725969038908,-500.0,0.00012039,2]
[337695122,1725969038918,-500.0,0.00012039,2]
[337695123,1725969038927,-500.0,0.00012039,2]
[337695124,1725969038936,-20360.80397504,0.00012039,2]
[337695125,1725969038959,-1599.21665465,0.00012039,2]
[337695126,1725969038970,-410.82807031,0.00012039,2]
[337695127,1725969038991,-1206.4713,0.00012039,2]
[337695128,1725969039000,-65.73955682,0.00012039,2]
[337695129,1725969039011,-434.26044318,0.00012039,2]
[337695130,1725969039021,-16.77334654,0.00012039,2]
[337695131,1725969039033,-2989.42665346,0.00012039,2]
[337695132,1725969039044,-1711.56,0.00012039,2]
[337695133,1725969039054,-559.19,0.0001204,2]
[337695134,1725969039064,-500.0,0.0001204,2]
[337695135,1725969039074,-500.0,0.0001204,2]
[337695136,1725969039084,-861.92,0.0001204,2]
[337695137,1725969039094,-500.0,0.0001204,2]
[337695138,1725969039103,-1775.03,0.0001204,2]
[337695139,1725969039112,-1583.57762806,0.0001204,2]
[337695140,1725969039130,-76.19237194,0.0001204,2]
[337695141,1725969039142,-1100.14,0.0001204,2]
[337695142,1725969039151,-208.53887594,0.0001204,2]
[337695143,1725969039819,-439.74112406,0.0001204,2]
[337695144,1725969039829,-210.25887594,0.0001204,2]
[337695145,1725969039879,-524.72112406,0.0001204,2]
[337695146,1725969039889,-90.89466957,0.0001204,2]
[337695147,1725969039900,-1368.05667035,0.0001204,2]
[337695148,1725969039912,-41.90866008,0.0001204,2]
[337695149,1725969039922,-243.93188979,0.0001204,2]
[337695150,1725969039933,-256.06811021,0.0001204,2]
[337695151,1725969039943,-500.0,0.0001204,2]
[337695152,1725969039952,-897.13,0.0001204,2]
[337695153,1725969039962,-951.49,0.0001204,2]
[337695154,1725969039971,-695.08,0.0001204,2]
[337695155,1725969039980,-500.0,0.0001204,2]
[337695156,1725969039989,-2177.42,0.0001204,2]
[337695157,1725969039999,-991.69,0.0001204,2]
[337695158,1725969040008,-190.35458388,0.0001204,2]
[337695159,1725969040020,-1407.57779476,0.0001204,2]
[337695160,1725969040042,-1222.79762136,0.0001204,2]
[337695161,1725969040051,-802.47029833,0.0001204,2]
[337695162,1725969040064,-496.22970167,0.0001204,2]
[337695163,1725969040074,-500.0,0.0001204,2]
[337695164,1725969040084,-500.0,0.0001204,2]
[337695165,1725969040095,-1426.38,0.0001204,2]
[337695166,1725969040104,-500.0,0.0001204,2]
[337695167,1725969040114,-889.34,0.0001204,2]
[337695168,1725969040125,-408.8323,0.0001204,2]
[337695169,1725969040135,-5312.71,0.0001204,2]
[337695170,1725969040145,-875.5,0.0001204,2]
[337695171,1725969040154,-739.97,0.0001204,2]
[337695172,1725969040163,-2840.4,0.0001204,2]
[337695173,1725969040172,-1893.44,0.0001204,2]
[337695174,1725969040181,-838.28,0.0001204,2]
[337695175,1725969040191,-7167.19,0.0001204,2]
[337695176,1725969040200,-1955.32,0.0001204,2]
[337695177,1725969040210,-42825.72,0.0001204,2]
[337695178,1725969040218,-4086.3,0.0001204,2]
[337695179,1725969040228,-1880.1,0.0001204,2]
[337695180,1725969040237,-6521.36,0.0001204,2]
[337695181,1725969040247,-2290.8,0.0001204,2]
[337695182,1725969040256,-2342.36,0.0001204,2]
[337695183,1725969040265,-500.0,0.0001204,2]
[337695184,1725969040275,-4705.25,0.0001204,2]
[337695185,1725969040284,-1127.24,0.0001204,2]
[337695186,1725969040294,-16571.19,0.0001204,2]
[337695187,1725969040303,-500.0,0.0001204,2]
[337695188,1725969040312,-500.0,0.0001204,2]
[337695189,1725969040323,-629.82,0.0001204,2]
[337695190,1725969040333,-648.73,0.0001204,2]
[337695192,1725969040343,-3742.58,0.0001204,2]
[337695194,1725969040353,-546.12,0.0001204,2]
[337695196,1725969040362,-500.0,0.0001204,2]
[337695198,1725969040373,-1479.02,0.0001204,2]
[337695200,1725969040383,-651.34,0.0001204,2]
[337695202,1725969040392,-627.35,0.0001204,2]
[337695204,1725969040402,-634.9,0.0001204,2]
[337695206,1725969040411,-601.68,0.0001204,2]
[337695208,1725969040421,-3585.63,0.0001204,2]
[337695210,1725969040431,-1729.09,0.0001204,2]
[337695212,1725969040441,-2729.28,0.0001204,2]
[337695214,1725969040452,-2000.72,0.0001204,2]
[337695216,1725969040462,-2048.05,0.0001204,2]
[337695218,1725969040471,-2246.68,0.0001204,2]
[337695220,1725969040481,-600.6,0.0001204,2]
[337695228,1725969040544,-1525.35,0.0001204,2]
[337695230,1725969040556,-1323.54,0.0001204,2]
[337695232,1725969040565,-42377.89,0.0001204,2]
[337695234,1725969040575,-3609.44,0.0001204,2]
[337695236,1725969040586,-3767.37,0.0001204,2]
[337695238,1725969040596,-3719.24,0.0001204,2]
[337695240,1725969040607,-3406.72,0.0001204,2]
[337695242,1725969040616,-4354.86,0.0001204,2]
[337695244,1725969040625,-2148.19,0.0001204,2]
[337695246,1725969040636,-67144.55641502,0.00012041,2]
[337695248,1725969040648,-28803.56104091,0.00012041,2]
[337695250,1725969040660,-1131.59228596,0.00012041,2]
[337695252,1725969040671,-78079.80296049,0.00012041,2]
[337695254,1725969040682,-562.53248212,0.00012041,2]
[337695257,1725969040693,-1087.46169813,0.00012041,2]
[337695259,1725969040709,-6396.77599098,0.00012041,2]
[337695261,1725969040719,-1206.83348292,0.00012041,2]
[337695263,1725969040731,-730.55933782,0.00012041,2]
[337695266,1725969040749,-1333.31807868,0.00012041,2]
[337695268,1725969040760,-500.0,0.00012041,2]
[337695270,1725969040777,-2787.01967712,0.00012041,2]
[337695272,1725969040787,-375.43823511,0.00012041,2]
[337695275,1725969040813,-2135.25572294,0.00012041,2]
[337695277,1725969040824,-495.55389865,0.00012041,2]
[337695279,1725969040835,-722.9693,0.00012041,2]
[337695282,1725969040846,-1259.96086,0.00012041,2]
[337695284,1725969040862,-1275.2531778,0.00012041,2]
[337695286,1725969040874,-1748.56626615,0.00012041,2]
[337695288,1725969040885,-1467.8621135,0.00012041,2]
[337695291,1725969040896,-674.47609604,0.00012041,2]
[337695293,1725969040909,-3537.73874138,0.00012041,2]
[337695501,1725969043111,-535.89,0.00012039,2]
[337695503,1725969043121,-839.02,0.0001204,2]
[337695505,1725969043136,-160.94323252,0.00012041,2]
[337695511,1725969043180,-78842.24234285,0.00012041,2]
[337695513,1725969043190,-108246.80145189,0.00012041,2]
[337695515,1725969043203,-5867.91004832,0.00012041,2]
[337695517,1725969043214,-2325.34922941,0.00012041,2]
[337695520,1725969043226,-6723.34743954,0.00012041,2]
[337695522,1725969043241,-714.36,0.00012041,2]
[337695525,1725969043257,-1727.45592964,0.00012041,2]
[337695527,1725969043268,-406.27232592,0.00012041,2]
[337695529,1725969043279,-7365.16641705,0.00012041,2]
[337695531,1725969043290,-210869.26969681,0.00012041,2]
[337695533,1725969043303,-56162.05529899,0.00012041,2]
[337695535,1725969045362,1021.15079033,0.000118,2]
[337695536,1725969045959,-355.99679615,0.00012039,2]
[337695537,1725969046235,-308.1,0.00012039,2]
[337695542,1725969086383,1140.7313,0.00011939,2]
[337695543,1725969093103,408.83229,0.0001194,2]
[337695544,1725969093166,408.8323,0.0001196,2]
[337695545,1725969094467,166.67,0.00011545,2]
[337695546,1725969097124,8772.22601269,0.00011776,2]
[337695547,1725969112717,168.9496233,0.00011941,2]
[337695548,1725969112917,212.0,0.0001194,2]
[337695549,1725969113235,212.0,0.0001174,2]
[337695550,1725969113578,212.0,0.0001154,2]
[337695551,1725969113942,212.0,0.0001135,2]
[337695552,1725969114039,500.0,0.00012,2]
[337695553,1725969114265,212.0,0.0001115,2]
[337695554,1725969114585,212.0,0.0001095,2]
[337695555,1725969115078,500.0,0.00012,2]
[337695556,1725969115115,212.0,0.0001076,2]
[337695557,1725969115319,212.0,0.0001056,2]
[337695558,1725969115590,500.0,0.00012,2]
[337695559,1725969116378,553.2,0.00012,2]
[337695560,1725969129305,1500.0,0.00011859,2]
[337695561,1725969133858,500.0,0.00012,2]
[337695562,1725969134656,500.0,0.00012,2]
[337695563,1725969135647,500.0,0.00012,2]
[337695564,1725969136206,522.37,0.00012,2]
[337695565,1725969138328,10000.0,0.00028,120]
[337695566,1725969150041,500.0,0.000114,4]
[337695567,1725969152153,1000.0,0.000115,4]
[337695568,1725969154301,1500.0,0.000116,4]
[337695569,1725969156398,2000.0,0.000117,4]
[337695570,1725969157034,690.18069397,0.00011941,2]